[Event "*** SCC Grand Prix: Titled Tuesday Blitz"]
[Site "Chess.com"]
[Date "2020.06.09"]
[Round "10"]
[White "andriipalchuk"]
[Black "Oleksandr_Bortnyk"]
[Result "1/2-1/2"]
[WhiteElo "2314"]
[BlackElo "2903"]
[TimeControl "180+1"]
[EndTime "10:58:34 PDT"]
[Termination "Game drawn by repetition"]

1. e4 {[%clk 0:03:00.3]} 1... Nf6 {[%clk 0:03:00.9]} 2. e5 {[%clk 0:03:00.8]}
2... Nd5 {[%clk 0:03:01.2]} 3. d4 {[%clk 0:03:01.5]} 3... d6 {[%clk 0:03:01.2]}
4. Nf3 {[%clk 0:03:02.1]} 4... dxe5 {[%clk 0:03:01]} 5. Nxe5 {[%clk 0:02:57.1]}
5... c6 {[%clk 0:02:58]} 6. Be2 {[%clk 0:02:55.7]} 6... Bf5 {[%clk 0:02:56.8]}
7. O-O {[%clk 0:02:54.5]} 7... Nd7 {[%clk 0:02:56.9]} 8. Nxd7 {[%clk 0:02:50.4]}
8... Qxd7 {[%clk 0:02:57.8]} 9. c3 {[%clk 0:02:47.6]} 9... e6 {[%clk 0:02:57.5]}
10. Nd2 {[%clk 0:02:47.2]} 10... Bd6 {[%clk 0:02:54.3]} 11. Nc4 {[%clk
0:02:44.2]} 11... O-O {[%clk 0:02:52.6]} 12. Nxd6 {[%clk 0:02:27.4]} 12... Qxd6
{[%clk 0:02:53.5]} 13. Re1 {[%clk 0:02:28]} 13... Rad8 {[%clk 0:02:27.8]} 14.
Bf1 {[%clk 0:02:12]} 14... c5 {[%clk 0:02:26.6]} 15. dxc5 {[%clk 0:02:07.3]}
15... Qxc5 {[%clk 0:02:27.5]} 16. Qb3 {[%clk 0:01:47.6]} 16... b6 {[%clk
0:02:23.3]} 17. Bg5 {[%clk 0:01:43.8]} 17... Rd7 {[%clk 0:02:19.7]} 18. Rad1
{[%clk 0:01:40.2]} 18... h6 {[%clk 0:02:17.6]} 19. Be3 {[%clk 0:01:36.8]} 19...
Qc7 {[%clk 0:02:07.9]} 20. Bd4 {[%clk 0:01:29.5]} 20... Rdd8 {[%clk 0:01:51.3]}
21. Be5 {[%clk 0:01:14.7]} 21... Qe7 {[%clk 0:01:47.8]} 22. Rd4 {[%clk
0:00:58.8]} 22... Qg5 {[%clk 0:01:24.1]} 23. Red1 {[%clk 0:00:53.3]} 23... Qg6
{[%clk 0:01:20.1]} 24. Qa3 {[%clk 0:00:49]} 24... Rc8 {[%clk 0:01:11.2]} 25. c4
{[%clk 0:00:31.4]} 25... Nf6 {[%clk 0:01:02.1]} 26. Qxa7 {[%clk 0:00:30.4]}
26... Bc2 {[%clk 0:00:38]} 27. Re1 {[%clk 0:00:25.5]} 27... Ne4 {[%clk
0:00:36.8]} 28. Qxb6 {[%clk 0:00:23.3]} 28... Ng5 {[%clk 0:00:30.5]} 29. Bg3
{[%clk 0:00:23.2]} 29... Rb8 {[%clk 0:00:29.4]} 30. Qa5 {[%clk 0:00:17.1]} 30...
Rxb2 {[%clk 0:00:29.2]} 31. c5 {[%clk 0:00:17.7]} 31... Be4 {[%clk 0:00:23.8]}
32. h4 {[%clk 0:00:12.8]} 32... Nf3+ {[%clk 0:00:07.6]} 33. gxf3 {[%clk
0:00:12.9]} 33... Bxf3 {[%clk 0:00:08.5]} 34. Qc3 {[%clk 0:00:12.9]} 34... Rxa2
{[%clk 0:00:03.7]} 35. Qxf3 {[%clk 0:00:12.7]} 35... Qc2 {[%clk 0:00:04.1]} 36.
c6 {[%clk 0:00:11.4]} 36... Qb2 {[%clk 0:00:02.4]} 37. Rc4 {[%clk 0:00:10.8]}
37... Ra3 {[%clk 0:00:02.7]} 38. Qe2 {[%clk 0:00:09.3]} 38... Qb6 {[%clk
0:00:02.7]} 39. c7 {[%clk 0:00:09.3]} 39... Rxg3+ {[%clk 0:00:02.9]} 40. Kh2
{[%clk 0:00:09.1]} 40... Ra3 {[%clk 0:00:01.7]} 41. c8=Q {[%clk 0:00:09.2]}
41... Rxc8 {[%clk 0:00:02.6]} 42. Rxc8+ {[%clk 0:00:09.4]} 42... Kh7 {[%clk
0:00:03.5]} 43. Qe4+ {[%clk 0:00:09.7]} 43... g6 {[%clk 0:00:04.1]} 44. Qf4
{[%clk 0:00:09.7]} 44... Ra7 {[%clk 0:00:03]} 45. Rf8 {[%clk 0:00:09.4]} 45...
Kg7 {[%clk 0:00:03.1]} 46. Rc8 {[%clk 0:00:09.8]} 46... Ra2 {[%clk 0:00:01.9]}
47. Kg1 {[%clk 0:00:08.5]} 47... Ra5 {[%clk 0:00:01.6]} 48. Rc3 {[%clk
0:00:08.1]} 48... Rf5 {[%clk 0:00:02.1]} 49. Qg3 {[%clk 0:00:08]} 49... Qb4
{[%clk 0:00:02.6]} 50. Rf3 {[%clk 0:00:07.8]} 50... Qxe1 {[%clk 0:00:02.2]} 51.
Rxf5 {[%clk 0:00:07.7]} 51... exf5 {[%clk 0:00:03.1]} 52. Kg2 {[%clk 0:00:08.2]}
52... Qa1 {[%clk 0:00:02.7]} 53. Qe3 {[%clk 0:00:08.5]} 53... Qf6 {[%clk
0:00:02.6]} 54. Qg3 {[%clk 0:00:07.8]} 54... f4 {[%clk 0:00:02.6]} 55. Qg4
{[%clk 0:00:08.4]} 55... h5 {[%clk 0:00:02.9]} 56. Qg5 {[%clk 0:00:08.2]} 56...
Qc6+ {[%clk 0:00:02.9]} 57. Kg1 {[%clk 0:00:08.3]} 57... Qe4 {[%clk 0:00:03.2]}
58. Bg2 {[%clk 0:00:08.4]} 58... f3 {[%clk 0:00:03.6]} 59. Bf1 {[%clk
0:00:08.7]} 59... f6 {[%clk 0:00:03.8]} 60. Qg3 {[%clk 0:00:08.7]} 60... Kh6
{[%clk 0:00:04.3]} 61. Kh2 {[%clk 0:00:08.6]} 61... Kg7 {[%clk 0:00:02.6]} 62.
Qc7+ {[%clk 0:00:08.4]} 62... Kh6 {[%clk 0:00:03.2]} 63. Qg3 {[%clk 0:00:09]}
63... Kg7 {[%clk 0:00:03.7]} 64. Qc7+ {[%clk 0:00:09.1]} 64... Kh6 {[%clk
0:00:04.1]} 65. Qg3 {[%clk 0:00:09.7]} 1/2-1/2

[Event "*** SCC Grand Prix: Titled Tuesday Blitz"]
[Site "Chess.com"]
[Date "2020.06.09"]
[Round "10"]
[White "LuckSlayeer"]
[Black "ARTHURMOTIVATOR"]
[Result "0-1"]
[WhiteElo "2448"]
[BlackElo "2307"]
[TimeControl "180+1"]
[EndTime "10:58:34 PDT"]
[Termination "ARTHURMOTIVATOR won by checkmate"]

1. Nf3 {[%clk 0:03:00.9]} 1... g6 {[%clk 0:02:57.4]} 2. c4 {[%clk 0:02:57.5]}
2... Bg7 {[%clk 0:02:57.4]} 3. g3 {[%clk 0:02:58.2]} 3... e5 {[%clk 0:02:55]} 4.
d3 {[%clk 0:02:58.7]} 4... Nc6 {[%clk 0:02:55.4]} 5. Bg2 {[%clk 0:02:59.3]} 5...
d6 {[%clk 0:02:54]} 6. O-O {[%clk 0:02:59.3]} 6... Nf6 {[%clk 0:02:49.2]} 7. Nc3
{[%clk 0:02:58.5]} 7... O-O {[%clk 0:02:49.2]} 8. Rb1 {[%clk 0:02:58.1]} 8... h6
{[%clk 0:02:39.8]} 9. b4 {[%clk 0:02:56.3]} 9... Be6 {[%clk 0:02:39.6]} 10. b5
{[%clk 0:02:54.8]} 10... Ne7 {[%clk 0:02:39.2]} 11. Ne1 {[%clk 0:02:48]} 11...
Qc8 {[%clk 0:02:33.3]} 12. Nc2 {[%clk 0:02:37.8]} 12... Bh3 {[%clk 0:02:31.1]}
13. a4 {[%clk 0:02:32]} 13... Nh5 {[%clk 0:02:23.9]} 14. d4 {[%clk 0:02:20.3]}
14... Bxg2 {[%clk 0:01:56.6]} 15. Kxg2 {[%clk 0:02:19.4]} 15... exd4 {[%clk
0:01:35.6]} 16. Nxd4 {[%clk 0:02:19.3]} 16... Nf5 {[%clk 0:01:36.3]} 17. Nxf5
{[%clk 0:01:58.8]} 17... Qxf5 {[%clk 0:01:34.5]} 18. Bb2 {[%clk 0:01:59.3]}
18... Qg4 {[%clk 0:01:25.2]} 19. e4 {[%clk 0:01:13.3]} 19... Nf4+ {[%clk
0:00:44.4]} 20. Kg1 {[%clk 0:00:54.8]} 20... Qxd1 {[%clk 0:00:40.9]} 21. Rfxd1
{[%clk 0:00:47.4]} 21... Bxc3 {[%clk 0:00:35.9]} 22. gxf4 {[%clk 0:00:47.6]}
22... Bxb2 {[%clk 0:00:34.9]} 23. Rxb2 {[%clk 0:00:48.5]} 23... Rfe8 {[%clk
0:00:34.7]} 24. f3 {[%clk 0:00:48.9]} 24... f5 {[%clk 0:00:26]} 25. Re2 {[%clk
0:00:44.1]} 25... Re6 {[%clk 0:00:24.7]} 26. Kf2 {[%clk 0:00:36.6]} 26... Rf8
{[%clk 0:00:22.6]} 27. e5 {[%clk 0:00:33.2]} 27... dxe5 {[%clk 0:00:20.7]} 28.
fxe5 {[%clk 0:00:31.7]} 28... f4 {[%clk 0:00:21]} 29. Rd7 {[%clk 0:00:29.5]}
29... Rf7 {[%clk 0:00:20.6]} 30. Rd8+ {[%clk 0:00:21.8]} 30... Kg7 {[%clk
0:00:20]} 31. Re4 {[%clk 0:00:19.5]} 31... g5 {[%clk 0:00:19]} 32. h3 {[%clk
0:00:17.2]} 32... a6 {[%clk 0:00:18.7]} 33. Ke2 {[%clk 0:00:16.1]} 33... axb5
{[%clk 0:00:18.5]} 34. axb5 {[%clk 0:00:16.1]} 34... Kg6 {[%clk 0:00:17.4]} 35.
c5 {[%clk 0:00:11.6]} 35... Kf5 {[%clk 0:00:17]} 36. Rd5 {[%clk 0:00:07.7]}
36... Rfe7 {[%clk 0:00:16.1]} 37. Kd3 {[%clk 0:00:06.5]} 37... Rxe5 {[%clk
0:00:15.4]} 38. Rexe5+ {[%clk 0:00:05.8]} 38... Rxe5 {[%clk 0:00:15.5]} 39. Kd4
{[%clk 0:00:03.5]} 39... Rxd5+ {[%clk 0:00:14.8]} 40. Kxd5 {[%clk 0:00:04.4]}
40... h5 {[%clk 0:00:12.8]} 41. b6 {[%clk 0:00:04.2]} 41... cxb6 {[%clk
0:00:11.5]} 42. cxb6 {[%clk 0:00:04.7]} 42... g4 {[%clk 0:00:11.9]} 43. hxg4+
{[%clk 0:00:05.3]} 43... hxg4 {[%clk 0:00:12.2]} 44. fxg4+ {[%clk 0:00:06]}
44... Kxg4 {[%clk 0:00:12.2]} 45. Kd6 {[%clk 0:00:06.9]} 45... f3 {[%clk
0:00:12.7]} 46. Kc7 {[%clk 0:00:07.8]} 46... f2 {[%clk 0:00:13.2]} 47. Kxb7
{[%clk 0:00:08.7]} 47... f1=Q {[%clk 0:00:13.5]} 48. Ka7 {[%clk 0:00:09]} 48...
Qa1+ {[%clk 0:00:13]} 49. Kb8 {[%clk 0:00:08.9]} 49... Kf5 {[%clk 0:00:11.7]}
50. b7 {[%clk 0:00:08.9]} 50... Qc3 {[%clk 0:00:11.6]} 51. Ka8 {[%clk 0:00:09]}
51... Qa5+ {[%clk 0:00:11.5]} 52. Kb8 {[%clk 0:00:09.4]} 52... Ke6 {[%clk
0:00:11.1]} 53. Kc8 {[%clk 0:00:09.9]} 53... Qc5+ {[%clk 0:00:10.1]} 54. Kd8
{[%clk 0:00:07.1]} 54... Qb6+ {[%clk 0:00:08.9]} 55. Kc8 {[%clk 0:00:07.4]}
55... Qc6+ {[%clk 0:00:08.8]} 56. Kb8 {[%clk 0:00:08]} 56... Kd6 {[%clk
0:00:08.6]} 57. Ka7 {[%clk 0:00:08]} 57... Qa4+ {[%clk 0:00:08.7]} 58. Kb8
{[%clk 0:00:08.3]} 58... Kc6 {[%clk 0:00:07.4]} 59. Kc8 {[%clk 0:00:08.7]} 59...
Qg4+ {[%clk 0:00:07]} 60. Kb8 {[%clk 0:00:08.1]} 60... Qb4 {[%clk 0:00:07]} 61.
Kc8 {[%clk 0:00:07.7]} 61... Qxb7+ {[%clk 0:00:07.3]} 62. Kd8 {[%clk 0:00:08.6]}
62... Qd7# {[%clk 0:00:07.7]} 0-1

[Event "*** SCC Grand Prix: Titled Tuesday Blitz"]
[Site "Chess.com"]
[Date "2020.06.09"]
[Round "10"]
[White "Treacherous_horse64"]
[Black "TheBigBadChessDad"]
[Result "1-0"]
[WhiteElo "2461"]
[BlackElo "2276"]
[TimeControl "180+1"]
[EndTime "10:58:39 PDT"]
[Termination "Treacherous_horse64 won on time"]

1. d4 {[%clk 0:03:00.7]} 1... d5 {[%clk 0:02:57.9]} 2. Nf3 {[%clk 0:03:00.9]}
2... e6 {[%clk 0:02:58]} 3. c4 {[%clk 0:03:01.4]} 3... Nf6 {[%clk 0:02:58.5]} 4.
Nc3 {[%clk 0:03:01.5]} 4... Be7 {[%clk 0:02:58]} 5. Bf4 {[%clk 0:03:01.4]} 5...
a6 {[%clk 0:02:54]} 6. e3 {[%clk 0:03:01]} 6... O-O {[%clk 0:02:52.9]} 7. Qc2
{[%clk 0:02:59.5]} 7... Nbd7 {[%clk 0:02:52.3]} 8. a3 {[%clk 0:02:57.8]} 8...
dxc4 {[%clk 0:02:47.3]} 9. Bxc4 {[%clk 0:02:57.7]} 9... b5 {[%clk 0:02:47.6]}
10. Be2 {[%clk 0:02:48.8]} 10... Bb7 {[%clk 0:02:47.7]} 11. O-O {[%clk
0:02:48.7]} 11... c5 {[%clk 0:02:46.8]} 12. dxc5 {[%clk 0:02:41.4]} 12... Nxc5
{[%clk 0:02:42.3]} 13. Rfd1 {[%clk 0:02:41.5]} 13... Qb6 {[%clk 0:02:40.4]} 14.
Rac1 {[%clk 0:02:40]} 14... Rac8 {[%clk 0:02:38.2]} 15. b4 {[%clk 0:02:20.9]}
15... Nce4 {[%clk 0:02:25.6]} 16. Qb2 {[%clk 0:02:19.5]} 16... Nxc3 {[%clk
0:02:22.8]} 17. Rxc3 {[%clk 0:02:20.4]} 17... Rxc3 {[%clk 0:02:17.2]} 18. Qxc3
{[%clk 0:02:21.1]} 18... Nd5 {[%clk 0:02:16.8]} 19. Qe5 {[%clk 0:02:11.8]} 19...
Bf6 {[%clk 0:01:56.6]} 20. Qd6 {[%clk 0:01:58.5]} 20... Qxd6 {[%clk 0:01:47.8]}
21. Bxd6 {[%clk 0:01:59]} 21... Rc8 {[%clk 0:01:39.7]} 22. Bf1 {[%clk
0:01:20.6]} 22... Bb2 {[%clk 0:01:31.8]} 23. Rd3 {[%clk 0:00:58.9]} 23... h6
{[%clk 0:01:04.8]} 24. Rb3 {[%clk 0:00:48.5]} 24... Bc1 {[%clk 0:00:55.4]} 25.
Bc5 {[%clk 0:00:48.3]} 25... Nf6 {[%clk 0:00:40.9]} 26. Bd3 {[%clk 0:00:41.9]}
26... Rd8 {[%clk 0:00:32.7]} 27. Kf1 {[%clk 0:00:37.6]} 27... Bd5 {[%clk
0:00:31.6]} 28. Rc3 {[%clk 0:00:30.7]} 28... Bb2 {[%clk 0:00:30.7]} 29. Rc2
{[%clk 0:00:30.6]} 29... Bxf3 {[%clk 0:00:21.9]} 30. gxf3 {[%clk 0:00:31.5]}
30... Rxd3 {[%clk 0:00:22]} 31. Rxb2 {[%clk 0:00:31.7]} 31... Rxa3 {[%clk
0:00:22.2]} 32. Rd2 {[%clk 0:00:26.7]} 32... Nd5 {[%clk 0:00:21.4]} 33. e4
{[%clk 0:00:27.1]} 33... Nf4 {[%clk 0:00:19.3]} 34. Rd1 {[%clk 0:00:27.1]} 34...
e5 {[%clk 0:00:15.4]} 35. Be3 {[%clk 0:00:27.3]} 35... g5 {[%clk 0:00:13.1]} 36.
Bxf4 {[%clk 0:00:24.9]} 36... gxf4 {[%clk 0:00:12.5]} 37. Rd6 {[%clk 0:00:23.6]}
37... Kg7 {[%clk 0:00:12.1]} 38. Kg2 {[%clk 0:00:23.2]} 38... f6 {[%clk
0:00:09.5]} 39. Rb6 {[%clk 0:00:21.4]} 39... Kg6 {[%clk 0:00:09.4]} 40. Rc6
{[%clk 0:00:19.4]} 40... Rb3 {[%clk 0:00:07.5]} 41. Rxa6 {[%clk 0:00:19.5]}
41... Rxb4 {[%clk 0:00:08.1]} 42. Rb6 {[%clk 0:00:20]} 42... Rb1 {[%clk
0:00:08.3]} 43. Kh3 {[%clk 0:00:19.4]} 43... b4 {[%clk 0:00:08.1]} 44. Rb8
{[%clk 0:00:19.3]} 44... b3 {[%clk 0:00:07.6]} 45. Rb7 {[%clk 0:00:14.4]} 45...
Kg5 {[%clk 0:00:06.8]} 46. Rg7+ {[%clk 0:00:12.5]} 46... Kh5 {[%clk 0:00:06.5]}
47. Rb7 {[%clk 0:00:09.5]} 47... Rf1 {[%clk 0:00:05.5]} 48. Rxb3 {[%clk
0:00:05.5]} 48... Rxf2 {[%clk 0:00:05.8]} 49. Rd3 {[%clk 0:00:04.7]} 49... Kg5
{[%clk 0:00:04.3]} 50. Rc3 {[%clk 0:00:05]} 50... f5 {[%clk 0:00:03.7]} 51. exf5
{[%clk 0:00:04.6]} 51... Kxf5 {[%clk 0:00:04.1]} 52. Rb3 {[%clk 0:00:04.7]} 1-0

[Event "*** SCC Grand Prix: Titled Tuesday Blitz"]
[Site "Chess.com"]
[Date "2020.06.09"]
[Round "10"]
[White "Rish_97"]
[Black "Radzio1987"]
[Result "1/2-1/2"]
[WhiteElo "2718"]
[BlackElo "2890"]
[TimeControl "180+1"]
[EndTime "10:58:42 PDT"]
[Termination "Game drawn by repetition"]

1. e4 {[%clk 0:03:00]} 1... c6 {[%clk 0:02:59.1]} 2. d4 {[%clk 0:02:58.4]} 2...
d5 {[%clk 0:03:00]} 3. e5 {[%clk 0:02:59.1]} 3... Bf5 {[%clk 0:02:59.6]} 4. h4
{[%clk 0:02:57.1]} 4... h5 {[%clk 0:02:58.6]} 5. c4 {[%clk 0:02:57.3]} 5... e6
{[%clk 0:02:58.4]} 6. Nc3 {[%clk 0:02:57.5]} 6... dxc4 {[%clk 0:02:56.4]} 7.
Bxc4 {[%clk 0:02:54]} 7... Be7 {[%clk 0:02:56.2]} 8. Nge2 {[%clk 0:02:33.1]}
8... Nd7 {[%clk 0:02:53.6]} 9. Ng3 {[%clk 0:02:32]} 9... Bg6 {[%clk 0:02:52.1]}
10. Nge4 {[%clk 0:02:30.1]} 10... Nb6 {[%clk 0:02:49.9]} 11. Bb3 {[%clk
0:02:26]} 11... Nh6 {[%clk 0:02:49]} 12. Bg5 {[%clk 0:02:05.5]} 12... Nf5 {[%clk
0:02:47.3]} 13. O-O {[%clk 0:01:28.5]} 13... Qxd4 {[%clk 0:02:40.6]} 14. Qe2
{[%clk 0:01:17.7]} 14... Qxe5 {[%clk 0:02:24.6]} 15. Rad1 {[%clk 0:01:00.4]}
15... O-O {[%clk 0:02:19.9]} 16. Bxe7 {[%clk 0:00:58.6]} 16... Nxe7 {[%clk
0:02:20.8]} 17. Qf3 {[%clk 0:00:55.1]} 17... Ned5 {[%clk 0:02:16.8]} 18. Ng5
{[%clk 0:00:51.9]} 18... Qf5 {[%clk 0:02:10.8]} 19. Qg3 {[%clk 0:00:49.4]} 19...
Qg4 {[%clk 0:02:03.2]} 20. Qxg4 {[%clk 0:00:34.9]} 20... hxg4 {[%clk 0:02:04.1]}
21. Rd4 {[%clk 0:00:35.3]} 21... Bf5 {[%clk 0:02:02.3]} 22. Rfd1 {[%clk
0:00:33.1]} 22... Rad8 {[%clk 0:01:52.5]} 23. Nge4 {[%clk 0:00:27.6]} 23... Nxc3
{[%clk 0:01:48.2]} 24. Nxc3 {[%clk 0:00:23.9]} 24... Rxd4 {[%clk 0:01:43.6]} 25.
Rxd4 {[%clk 0:00:24.8]} 25... Nd5 {[%clk 0:01:44]} 26. Bd1 {[%clk 0:00:20.2]}
26... e5 {[%clk 0:01:42.6]} 27. Nxd5 {[%clk 0:00:19.2]} 27... cxd5 {[%clk
0:00:44.3]} 28. Rxd5 {[%clk 0:00:20.1]} 28... f6 {[%clk 0:00:44.7]} 29. Ra5
{[%clk 0:00:20.5]} 29... Rd8 {[%clk 0:00:39.2]} 30. Bb3+ {[%clk 0:00:20.2]}
30... Kh7 {[%clk 0:00:39.4]} 31. Rxa7 {[%clk 0:00:21.1]} 31... Rd2 {[%clk
0:00:37.9]} 32. Rxb7 {[%clk 0:00:20.2]} 32... g3 {[%clk 0:00:38.3]} 33. fxg3
{[%clk 0:00:19.4]} 33... Be4 {[%clk 0:00:38.7]} 34. Rb4 {[%clk 0:00:19.7]} 34...
f5 {[%clk 0:00:38.4]} 35. a4 {[%clk 0:00:17.6]} 35... Rxg2+ {[%clk 0:00:34.8]}
36. Kf1 {[%clk 0:00:18.1]} 36... Rxg3 {[%clk 0:00:35]} 37. a5 {[%clk 0:00:18.7]}
37... Rh3 {[%clk 0:00:30.2]} 38. Bc4 {[%clk 0:00:17.5]} 38... Rh1+ {[%clk
0:00:28.1]} 39. Kf2 {[%clk 0:00:17.9]} 39... Kh6 {[%clk 0:00:18.4]} 40. a6
{[%clk 0:00:17.9]} 40... Ra1 {[%clk 0:00:18.1]} 41. b3 {[%clk 0:00:17.8]} 41...
Ra2+ {[%clk 0:00:15.7]} 42. Ke3 {[%clk 0:00:17.3]} 42... Bg2 {[%clk 0:00:15.7]}
43. Ra4 {[%clk 0:00:17]} 43... f4+ {[%clk 0:00:16.1]} 44. Kd3 {[%clk 0:00:15.9]}
44... e4+ {[%clk 0:00:16.3]} 45. Kc3 {[%clk 0:00:16.4]} 45... Rxa4 {[%clk
0:00:14]} 46. bxa4 {[%clk 0:00:17.3]} 46... e3 {[%clk 0:00:14.5]} 47. Kd4 {[%clk
0:00:16.6]} 47... Kh5 {[%clk 0:00:13.6]} 48. a7 {[%clk 0:00:16.9]} 48... Ba8
{[%clk 0:00:10.5]} 49. Bd5 {[%clk 0:00:14]} 49... e2 {[%clk 0:00:08.8]} 50. Bxa8
{[%clk 0:00:13.8]} 50... e1=Q {[%clk 0:00:08.9]} 51. Bf3+ {[%clk 0:00:14.7]}
51... Kxh4 {[%clk 0:00:09.3]} 52. a8=Q {[%clk 0:00:15.6]} 52... Qe3+ {[%clk
0:00:09]} 53. Kc4 {[%clk 0:00:16.1]} 53... Kg3 {[%clk 0:00:09.3]} 54. Bd5 {[%clk
0:00:15.4]} 54... Qe2+ {[%clk 0:00:06.4]} 55. Kc5 {[%clk 0:00:15.3]} 55... Qe3+
{[%clk 0:00:06.7]} 56. Kd6 {[%clk 0:00:15.4]} 56... f3 {[%clk 0:00:06.6]} 57.
Bxf3 {[%clk 0:00:15]} 57... Qf4+ {[%clk 0:00:05.7]} 58. Ke6 {[%clk 0:00:13.7]}
58... Qe3+ {[%clk 0:00:05.5]} 59. Kd6 {[%clk 0:00:13.4]} 59... Qf4+ {[%clk
0:00:05.6]} 60. Kd7 {[%clk 0:00:13.7]} 60... Qf5+ {[%clk 0:00:05.5]} 61. Kd6
{[%clk 0:00:13.7]} 61... Qf6+ {[%clk 0:00:05.4]} 62. Kd7 {[%clk 0:00:13.6]}
62... Qf5+ {[%clk 0:00:05.5]} 63. Kd6 {[%clk 0:00:13.9]} 63... Qf6+ {[%clk
0:00:05.8]} 64. Kd7 {[%clk 0:00:14.1]} 64... Qf5+ {[%clk 0:00:06.2]} 1/2-1/2

[Event "*** SCC Grand Prix: Titled Tuesday Blitz"]
[Site "Chess.com"]
[Date "2020.06.09"]
[Round "10"]
[White "Future2700"]
[Black "vinniethepooh"]
[Result "1-0"]
[WhiteElo "2427"]
[BlackElo "2545"]
[TimeControl "180+1"]
[EndTime "10:58:45 PDT"]
[Termination "Future2700 won by resignation"]

1. e4 {[%clk 0:03:00.9]} 1... c5 {[%clk 0:03:00.1]} 2. Nf3 {[%clk 0:02:57.2]}
2... d6 {[%clk 0:03:00.4]} 3. d4 {[%clk 0:02:57.1]} 3... cxd4 {[%clk 0:03:01.3]}
4. Nxd4 {[%clk 0:02:57.4]} 4... Nf6 {[%clk 0:03:00.6]} 5. Nc3 {[%clk 0:02:57.3]}
5... a6 {[%clk 0:03:00.7]} 6. g3 {[%clk 0:02:56.7]} 6... e5 {[%clk 0:03:00.7]}
7. Nde2 {[%clk 0:02:57]} 7... Be7 {[%clk 0:03:00.3]} 8. Bg2 {[%clk 0:02:57.5]}
8... b5 {[%clk 0:03:00.6]} 9. a4 {[%clk 0:02:55.8]} 9... bxa4 {[%clk 0:02:41.1]}
10. Rxa4 {[%clk 0:02:50.6]} 10... O-O {[%clk 0:02:40.6]} 11. O-O {[%clk
0:02:50.5]} 11... Nbd7 {[%clk 0:02:36.4]} 12. h3 {[%clk 0:02:45.2]} 12... Nc5
{[%clk 0:02:33.1]} 13. Ra1 {[%clk 0:02:45.3]} 13... Bb7 {[%clk 0:02:33.3]} 14.
Nd5 {[%clk 0:02:42.1]} 14... Ncxe4 {[%clk 0:02:18.7]} 15. Nxf6+ {[%clk
0:02:01.9]} 15... Bxf6 {[%clk 0:02:17.2]} 16. Bxe4 {[%clk 0:01:56.4]} 16... Bxe4
{[%clk 0:02:18.1]} 17. Nc3 {[%clk 0:01:56.7]} 17... Bb7 {[%clk 0:02:03.3]} 18.
Nd5 {[%clk 0:01:54]} 18... Be7 {[%clk 0:01:57.9]} 19. Be3 {[%clk 0:01:50.2]}
19... Re8 {[%clk 0:01:55.1]} 20. Bb6 {[%clk 0:01:48.3]} 20... Qd7 {[%clk
0:01:55.5]} 21. Kh2 {[%clk 0:01:41.5]} 21... Rac8 {[%clk 0:01:45.4]} 22. c3
{[%clk 0:01:37.9]} 22... Bf8 {[%clk 0:01:25.6]} 23. Be3 {[%clk 0:01:33.1]} 23...
f5 {[%clk 0:01:18.2]} 24. Qb3 {[%clk 0:01:18.1]} 24... Kh8 {[%clk 0:01:06.4]}
25. Rfd1 {[%clk 0:01:11.8]} 25... f4 {[%clk 0:00:44.9]} 26. gxf4 {[%clk
0:01:04.3]} 26... exf4 {[%clk 0:00:45.8]} 27. Nxf4 {[%clk 0:00:51.3]} 27... Re5
{[%clk 0:00:36.4]} 28. Bd4 {[%clk 0:00:29.8]} 28... Rf5 {[%clk 0:00:30.7]} 29.
Qe6 {[%clk 0:00:28.1]} 29... Bc6 {[%clk 0:00:17.8]} 30. Qxd7 {[%clk 0:00:28.2]}
30... Bxd7 {[%clk 0:00:18.7]} 31. Be3 {[%clk 0:00:27.6]} 31... g5 {[%clk
0:00:17.5]} 32. Nd5 {[%clk 0:00:26.2]} 32... Rf3 {[%clk 0:00:08.2]} 33. Nb6
{[%clk 0:00:23]} 33... Rc7 {[%clk 0:00:04.6]} 34. Nxd7 {[%clk 0:00:23.3]} 34...
Rxd7 {[%clk 0:00:05.5]} 35. Rxa6 {[%clk 0:00:23.6]} 35... Rdf7 {[%clk
0:00:03.5]} 36. Kg2 {[%clk 0:00:24]} 36... R3f5 {[%clk 0:00:03.9]} 37. Ra8
{[%clk 0:00:22.5]} 37... Kg7 {[%clk 0:00:03.9]} 38. Ra4 {[%clk 0:00:18.4]} 38...
Kg6 {[%clk 0:00:04.1]} 39. Re4 {[%clk 0:00:18.3]} 39... R7f6 {[%clk 0:00:03.3]}
40. Bd4 {[%clk 0:00:16.4]} 40... Rf7 {[%clk 0:00:03.8]} 41. Re6+ {[%clk
0:00:16.8]} 41... Kh5 {[%clk 0:00:04.3]} 42. Rde1 {[%clk 0:00:16.2]} 42... Bg7
{[%clk 0:00:04.5]} 43. Bxg7 {[%clk 0:00:12.3]} 43... Rxg7 {[%clk 0:00:05.1]} 44.
Rxd6 {[%clk 0:00:12.1]} 44... Rgf7 {[%clk 0:00:04.2]} 45. Re2 {[%clk 0:00:11.9]}
45... Rf3 {[%clk 0:00:03.4]} 46. c4 {[%clk 0:00:11.2]} 46... R3f4 {[%clk
0:00:02.1]} 47. c5 {[%clk 0:00:11.3]} 47... R7f5 {[%clk 0:00:01.8]} 48. Rc2
{[%clk 0:00:10.4]} 48... Rf7 {[%clk 0:00:01.2]} 49. c6 {[%clk 0:00:10.7]} 49...
Rc7 {[%clk 0:00:01.5]} 50. Rd7 {[%clk 0:00:10.7]} 50... Rxd7 {[%clk 0:00:02]}
51. cxd7 {[%clk 0:00:11.6]} 51... Rd4 {[%clk 0:00:02.9]} 52. Rc7 {[%clk
0:00:11.2]} 52... Kg6 {[%clk 0:00:03]} 53. b4 {[%clk 0:00:10.1]} 53... Kf6
{[%clk 0:00:02.8]} 54. b5 {[%clk 0:00:10.6]} 54... Ke6 {[%clk 0:00:03.3]} 55. b6
{[%clk 0:00:10.5]} 55... Rxd7 {[%clk 0:00:03.7]} 56. Rxd7 {[%clk 0:00:10.8]}
56... Kxd7 {[%clk 0:00:04.6]} 57. Kg3 {[%clk 0:00:11.6]} 57... Kc6 {[%clk
0:00:05.1]} 58. Kg4 {[%clk 0:00:12]} 58... Kxb6 {[%clk 0:00:04.9]} 59. Kxg5
{[%clk 0:00:12.9]} 59... Kc7 {[%clk 0:00:05.4]} 60. Kh6 {[%clk 0:00:13]} 60...
Kd7 {[%clk 0:00:06.3]} 61. Kxh7 {[%clk 0:00:13.6]} 61... Ke6 {[%clk 0:00:07.2]}
62. Kg6 {[%clk 0:00:14.2]} 62... Ke5 {[%clk 0:00:07.3]} 63. Kg5 {[%clk
0:00:14.7]} 63... Ke6 {[%clk 0:00:08.2]} 64. f4 {[%clk 0:00:15.1]} 64... Kf7
{[%clk 0:00:09.1]} 65. f5 {[%clk 0:00:15.6]} 65... Kg7 {[%clk 0:00:10]} 66. f6+
{[%clk 0:00:16]} 66... Kf7 {[%clk 0:00:07.7]} 67. Kf5 {[%clk 0:00:16.9]} 67...
Kf8 {[%clk 0:00:08.2]} 68. Kg6 {[%clk 0:00:17.2]} 68... Kg8 {[%clk 0:00:08.8]}
69. f7+ {[%clk 0:00:17.8]} 69... Kf8 {[%clk 0:00:08.2]} 70. h4 {[%clk
0:00:17.6]} 1-0